bitfinex-derivatives/quotes_ETHF0:USTF0_20250404
["timestamp","ask_amount","ask_price","bid_price","bid_amount"]
[1743757544836,4.7662065,1826.6,1826.5,4.40590256]
[1743757545236,3.6711965,1826.6,1826.5,4.40590256]
[1743757545738,4.7662065,1826.6,1826.5,4.40590256]
[1743757547541,7.9740065,1826.6,1826.5,4.40590256]
[1743757547740,9.3900065,1826.6,1826.5,4.40590256]
[1743757548442,9.3900065,1826.6,1826.5,2.99810256]
[1743757549143,1.09513,1826.4,1826.3,1.5116965]
[1743757549340,1.09513,1826.4,1826.3,3.00629906]
[1743757550439,4.30293,1826.4,1826.3,0.0081965]
[1743757552649,4.74760934,1826.4,1826.3,0.0081965]
[1743757553638,1.09525,1826.2,1826.1,0.1349]
[1743757553838,1.09566,1825.6,1825.2,9.16559418]
[1743757554041,4.75867,1825.5,1825.4,1.4984]
[1743757554236,4.75867,1825.5,1825.4,4.49650256]
[1743757554443,7.02837,1825.5,1825.4,4.49650256]
[1743757555046,7.02837,1825.5,1825.4,2.99810256]
[1743757555348,7.02837,1825.5,1825.3,0.00545782]
[1743757555349,1.09573,1825.4,1825.3,0.00545782]
[1743757555847,3.663,1825.4,1825.3,3.00356038]
[1743757556048,4.75873,1825.4,1825.3,3.00356038]
[1743757556248,4.75873,1825.4,1825.3,9.4501604]
[1743757556450,7.96653,1825.4,1825.3,9.4501604]
[1743757557240,7.96653,1825.4,1825.3,4.45016038]
[1743757557651,4.75873,1825.4,1825.3,4.45016038]
[1743757558045,4.75873,1825.4,1825.3,9.4501604]
[1743757558851,0.0081965,1825.6,1825.3,10.15796038]
[1743757559051,1.09567,1825.5,1825.4,5.23770256]
[1743757559653,1.09567,1825.5,1825.4,10.23770258]
[1743757560343,1.09567,1825.5,1825.4,5.23770256]
[1743757560951,1.09567,1825.5,1825.4,10.23770258]
[1743757562752,1.09567,1825.5,1825.4,5.23770256]
[1743757563348,1.09567,1825.5,1825.4,10.23770258]
[1743757564555,1.09567,1825.5,1825.4,9.51480258]
[1743757564847,1.09584,1825.4,1825.3,0.00545782]
[1743757565054,4.30364,1825.4,1825.3,3.00356038]
[1743757565242,5.70154,1825.4,1825.3,3.00356038]
[1743757566151,1.3979,1825.4,1825.3,3.00356038]
[1743757566351,5.0629,1825.4,1825.3,3.00356038]
[1743757566554,3.665,1825.4,1825.3,5.48516038]
[1743757566855,3.665,1825.5,1825.3,10.4851504]
[1743757567054,3.665,1825.5,1825.4,4.38380256]
[1743757567249,4.76078,1825.5,1825.4,2.99810256]
[1743757567558,6.98808,1825.5,1825.4,4.38380256]
[1743757568054,1.09584,1825.4,1825.3,7.82e-06]
[1743757568253,1.0959,1825.3,1825.2,2.99810256]
[1743757568452,1.09614,1824.9,1824.8,4.38380256]
[1743757568755,1.09614,1824.9,1824.8,5.10770256]
[1743757569051,1.09614,1824.9,1824.8,10.10770258]
[1743757570054,1.09614,1824.9,1824.8,5.10770256]
[1743757570354,1.09614,1824.9,1824.8,10.10770258]
[1743757570555,1.0962,1824.8,1824.7,5.95779418]
[1743757570856,4.304,1824.8,1824.7,8.95589674]
[1743757571251,5.7064,1824.8,1824.7,8.95589674]
[1743757572150,5.7064,1824.8,1824.7,2.99810256]
[1743757577061,1.09626,1824.7,1824.6,1.4847]
[1743757577262,4.76126,1824.7,1824.6,6.48470002]
[1743757577559,4.76126,1824.7,1824.6,9.48280258]
[1743757577859,4.76126,1824.7,1824.6,4.48280256]
[1743757578058,6.22386,1824.7,1824.6,2.99810256]
[1743757580364,5.1276,1824.7,1824.0,9.16559418]
[1743757580559,5.94879,1824.5,1824.0,7.49019418]
[1743757580759,1.09656,1824.2,1824.1,4.53050256]
[1743757581070,1.09656,1824.2,1824.1,2.99810256]
[1743757581267,1.09654,1824.3,1824.1,5.49810256]
[1743757581559,1.09654,1824.3,1824.2,2.99810256]
[1743757581766,1.09654,1824.3,1824.2,3.75670256]
[1743757581966,1.09654,1824.3,1824.2,6.25670256]
[1743757582366,1.09654,1824.3,1824.2,8.75670258]
[1743757582663,1.09654,1824.3,1824.2,3.75670256]
[1743757583567,1.09654,1824.3,1824.2,8.75670258]
[1743757583765,1.09654,1824.3,1824.2,11.96450258]
[1743757583967,1.09654,1824.3,1824.2,14.71449676]
[1743757584670,1.09654,1824.3,1824.2,17.92229676]
[1743757584865,1.09654,1824.3,1824.2,17.16369676]
[1743757585068,1.09654,1824.3,1824.2,13.95589676]
[1743757585463,0.00821917,1824.5,1824.2,11.45589674]
[1743757585669,1.09644,1824.4,1824.3,4.45290256]
[1743757585869,1.09644,1824.4,1824.3,1.4548]
[1743757586068,1.09644,1824.4,1824.3,4.45290256]
[1743757586970,1.09644,1824.4,1824.3,9.45290258]
[1743757591880,1.09644,1824.4,1824.3,7.99810258]
[1743757592180,2.51264,1824.4,1824.3,7.99810258]
[1743757593976,1.09644,1824.4,1824.3,7.99810258]
[1743757594176,1.09644,1824.4,1824.3,2.99810256]
[1743757594886,1.09644,1824.4,1824.3,7.99810258]
[1743757595683,3.67421917,1824.5,1824.4,1.09644]
[1743757595883,1.10461917,1824.5,1824.4,4.79624256]
[1743757596084,1.10461917,1824.5,1824.4,3.69980256]
[1743757596482,1.10461917,1824.5,1824.4,8.69980258]
[1743757601586,1.10461917,1824.5,1824.4,14.65759676]
[1743757602287,1.10461917,1824.5,1824.4,9.65759674]
[1743757602490,3.666,1824.9,1824.4,9.15949418]
[1743757602782,3.9472,1825.0,1824.6,3.2078]
[1743757602990,1.0962,1824.8,1824.7,2.2043]
[1743757603190,1.0962,1824.8,1824.7,5.20240256]
[1743757603896,1.0962,1824.8,1824.7,46.00240256]
[1743757604794,1.0962,1824.8,1824.7,45.25650256]
[1743757605893,1.0962,1824.8,1824.7,4.45650256]
[1743757607287,1.0962,1824.8,1824.7,7.66430256]
[1743757608900,1.10440917,1824.9,1824.7,7.66430256]
[1743757609101,1.10440917,1824.9,1824.8,5.23840256]
[1743757609296,1.10440917,1824.9,1824.8,11.19619674]
[1743757610001,1.10440917,1824.9,1824.8,12.29239674]
[1743757610498,0.00821917,1824.9,1824.8,14.79239674]
[1743757611097,1.09608,1825.0,1824.9,1.09614]
[1743757611297,1.09608,1825.0,1824.9,9.51624256]
[1743757611497,1.09608,1825.0,1824.9,12.01624256]
[1743757611894,1.09608,1825.0,1824.9,52.81624256]
[1743757613300,1.09608,1825.0,1824.9,51.72010256]
[1743757614602,1.09608,1825.0,1824.9,52.81624256]
[1743757616204,1.09608,1825.0,1824.9,11.17009674]
[1743757616499,1.79148,1825.0,1824.9,11.17009674]
[1743757617404,1.79148,1825.0,1824.9,12.26623674]
[1743757617598,1.79148,1825.0,1824.9,11.17009674]
[1743757618203,1.79148,1825.0,1824.9,10.46169674]
[1743757619703,1.09608,1825.0,1824.9,11.55783674]
[1743757620297,1.09608,1825.0,1824.9,10.46169674]
[1743757621607,1.09608,1825.0,1824.9,11.55783674]
[1743757622309,1.09608,1825.0,1824.9,14.76563674]
[1743757622900,1.10428917,1825.1,1825.0,1.09608]
[1743757623105,1.10428917,1825.1,1825.0,5.56548256]
[1743757623807,1.10428917,1825.1,1825.0,4.46940256]
[1743757624706,1.10428917,1825.1,1825.0,5.56548256]
[1743757625207,1.10428917,1825.1,1825.0,4.46940256]
[1743757625706,1.10428917,1825.1,1825.0,5.56548256]
[1743757625899,0.00821917,1825.1,1825.0,7.04408256]
[1743757626111,1.09596,1825.2,1825.1,1.09602]
[1743757626303,1.09596,1825.2,1825.1,5.58192256]
[1743757626504,1.09596,1825.2,1825.1,4.48590256]
[1743757626904,1.09596,1825.2,1825.1,5.58192256]
[1743757627111,1.10417917,1825.3,1825.2,1.09592]
[1743757627411,1.10417917,1825.3,1825.2,11.46771674]
[1743757628302,0.00821917,1825.3,1825.2,13.96771674]
[1743757628905,1.10411917,1825.3,1825.2,13.96771674]
[1743757630605,0.00821917,1825.3,1825.2,13.96771674]
[1743757630812,1.10411917,1825.3,1825.2,13.96771674]
[1743757632010,1.0956,1825.9,1825.8,1.09554]
[1743757632213,3.95774,1825.9,1825.8,1.09554]
[1743757632722,1.4182,1825.9,1825.8,1.09554]
[1743757633007,1.79094,1825.9,1825.8,2.52974]
[1743757633207,1.79094,1825.9,1825.8,1.4342]
[1743757633410,1.79094,1825.9,1825.8,4.642]
[1743757633716,1.79094,1825.9,1825.8,1.4342]
[1743757633915,1.79094,1825.9,1825.8,2.5298]
[1743757634615,0.6954,1825.9,1825.8,2.5298]
[1743757634919,1.79094,1825.9,1825.8,2.5298]
[1743757635917,0.6954,1825.9,1825.8,2.5298]
[1743757636610,1.79094,1825.9,1825.8,2.5298]
[1743757636816,1.79094,1825.9,1825.8,8.48759418]
[1743757638118,0.6954,1825.9,1825.8,8.48759418]
[1743757638814,0.73101917,1826.0,1825.9,1.09554]
[1743757639019,0.00821917,1826.0,1825.9,2.51844]
[1743757639420,0.00821917,1826.0,1825.9,50.00263418]
[1743757640915,1.10369917,1826.0,1825.9,50.00263418]
[1743757641118,1.10369917,1826.0,1825.9,5.95779418]
[1743757644322,1.10369917,1826.0,1825.9,7.05333418]
[1743757647128,1.10369917,1826.0,1825.9,5.95779418]
[1743757647533,0.00821917,1826.0,1825.9,7.05333418]
[1743757648031,1.10369917,1826.0,1825.9,8.48573418]
[1743757648831,0.00821917,1826.0,1825.9,8.48573418]
[1743757649130,1.10369917,1826.0,1825.9,8.48573418]
[1743757649334,0.00821917,1826.0,1825.9,8.48573418]
[1743757649533,1.10369917,1826.0,1825.9,8.48573418]
[1743757650836,0.00821917,1826.0,1825.9,8.48573418]
[1743757651130,0.00821917,1826.0,1825.9,9.21213418]
[1743757651337,1.10369917,1826.0,1825.9,9.21213418]
[1743757654040,0.00821917,1826.0,1825.9,9.21213418]
[1743757659341,2.52576,1826.2,1826.1,1.09542]
[1743757659547,2.52576,1826.2,1826.1,4.30322]
[1743757659746,2.52576,1826.2,1826.1,5.69272]
[1743757660344,2.52576,1826.2,1826.1,11.65051418]
[1743757661346,1.4304,1826.2,1826.1,11.65051418]
[1743757662643,2.52576,1826.2,1826.1,11.65051418]
[1743757664544,2.52576,1826.2,1826.1,8.44271418]
[1743757664745,4.04546,1826.2,1826.1,8.44271418]
[1743757664943,1.4304,1826.2,1826.1,8.44271418]
[1743757665447,1.4304,1826.2,1826.1,11.65051418]
[1743757665647,0.701,1826.2,1826.1,12.40241418]
[1743757666646,1.79636,1826.2,1826.1,12.40241418]
[1743757668351,1.79636,1826.2,1826.1,9.19461418]
[1743757668552,1.79636,1826.2,1826.1,12.40241418]
[1743757669645,0.701,1826.2,1826.1,12.40241418]
[1743757669953,1.79636,1826.2,1826.1,12.40241418]
[1743757670749,0.701,1826.2,1826.1,12.40241418]
[1743757672156,1.79636,1826.2,1826.1,12.40241418]
[1743757673448,0.701,1826.2,1826.1,12.40241418]
[1743757674855,0.00821917,1826.3,1826.2,1.09536]
[1743757675051,0.00821917,1826.3,1826.2,2.49316]
[1743757675755,0.00821917,1826.3,1826.2,8.45095418]
[1743757676850,3.2078,1827.2,1826.2,15.33242418]
[1743757677152,1.4852,1826.9,1826.8,4.3028]
[1743757677755,1.4852,1826.9,1826.8,5.6892]
[1743757677960,1.4852,1826.9,1826.8,46.4892]
[1743757678457,0.0054039,1827.0,1826.9,1.09494]
[1743757678658,1.1002839,1827.0,1826.9,2.48134]
[1743757681062,1.09494,1826.9,1826.8,45.10275]
[1743757681263,3.93614,1826.9,1826.8,1.09495]
[1743757681755,1.095,1826.8,1826.7,7.06102335]
[1743757681960,2.4839,1826.8,1826.7,7.06102335]
[1743757682950,2.4839,1826.8,1826.7,5.96601335]
[1743757683158,2.4839,1826.8,1826.7,7.06107335]
[1743757683355,2.4839,1826.8,1826.7,5.96601335]
[1743757686661,2.4839,1826.8,1826.7,0.00821917]
[1743757688265,2.4839,1826.8,1826.7,1.53101917]
[1743757698973,2.4839,1826.8,1826.7,2.62596917]
[1743757699173,1.095,1826.8,1826.7,2.62596917]
[1743757699474,1.095,1826.8,1826.7,2.29711917]
[1743757701673,2.5808,1826.8,1826.7,2.29711917]
[1743757702473,1.4523,1826.9,1826.8,1.09489]
[1743757702665,0.0054039,1827.0,1826.9,1.09483]
[1743757703071,0.0054039,1827.0,1826.9,43.35913]
[1743757704177,1.1001739,1827.0,1826.9,49.31692418]
[1743757706178,1.81768,1827.2,1827.1,1.09471]
[1743757706377,1.09468,1827.2,1827.1,4.30251]
[1743757706678,1.09468,1827.2,1827.1,3.2078]
[1743757706876,1.09468,1827.2,1827.1,4.7241]
[1743757709176,1.09468,1827.2,1827.1,5.81881]
[1743757709383,1.09468,1827.2,1827.1,4.7241]
[1743757709673,1.09468,1827.2,1827.1,5.81881]
[1743757710580,1.09468,1827.2,1827.1,4.7241]
[1743757710983,1.09468,1827.2,1827.1,5.81881]
[1743757711374,1.09468,1827.2,1827.1,4.7241]
[1743757711985,1.09468,1827.2,1827.1,5.81881]
[1743757712184,1.09468,1827.2,1827.1,4.7241]
[1743757712484,1.09468,1827.2,1827.1,5.81881]
[1743757712785,1.09468,1827.2,1827.1,4.7241]
[1743757714984,1.09468,1827.2,1827.1,5.81881]
[1743757715179,1.09468,1827.2,1827.1,6.51901]
[1743757715878,1.09464,1827.3,1827.1,12.47680418]
[1743757716084,1.09464,1827.3,1827.2,1.4181]
[1743757717686,2.54244,1827.3,1827.2,1.4181]
[1743757721280,1.09465,1827.2,1827.1,5.95779418]
[1743757721481,2.56015,1827.2,1827.1,5.95779418]
[1743757721681,1.09471,1827.1,1827.0,2.1069]
[1743757721882,1.79791,1827.1,1827.0,3.20167]
[1743757722181,1.09477,1827.0,1826.9,44.0078]
[1743757722386,3.29147,1827.0,1826.9,46.60943]
[1743757722586,3.29147,1827.0,1826.9,45.5146]
[1743757722986,3.29147,1827.0,1826.9,46.60943]
[1743757724791,1.79797,1827.1,1827.0,1.09477]
[1743757724991,1.79797,1827.1,1827.0,3.31427]
[1743757726989,1.79797,1827.1,1827.0,6.52207]
[1743757729192,1.09477,1827.1,1827.0,6.52207]
[1743757731986,1.0947,1827.2,1827.1,1.09466]
[1743757732286,1.0947,1827.2,1827.1,8.53625418]
[1743757735096,1.0947,1827.2,1827.1,7.44159418]
[1743757735796,1.8227,1827.2,1827.1,8.53630418]
[1743757736395,1.8227,1827.2,1827.1,2.57851]
[1743757740797,1.8227,1827.2,1827.1,1.4838]
[1743757741099,3.2697,1827.2,1827.1,1.4838]
[1743757742795,1.8227,1827.2,1827.1,2.57851]
[1743757743102,1.8227,1827.2,1827.1,3.33821]
[1743757745005,1.0947,1827.2,1827.1,3.33821]
[1743757748200,1.0947,1827.2,1827.1,2.2435]
[1743757748405,1.0947,1827.2,1827.1,1.4838]
[1743757749198,1.0947,1827.2,1827.1,2.57851]
[1743757749600,1.0947,1827.2,1827.1,1.4838]
[1743757749806,1.0947,1827.2,1827.1,2.57851]
[1743757751008,1.0947,1827.2,1827.1,1.4838]
[1743757751210,1.0947,1827.2,1827.1,2.57851]
[1743757754300,1.8238,1827.2,1827.1,2.57851]
[1743757760715,9.59331,1828.0,1827.2,2.73664]
[1743757760914,0.7616,1827.7,1827.6,1.09436]
[1743757761215,5.139,1827.9,1827.8,1.09429]
[1743757761422,6.23323,1827.9,1827.8,3.2078]
[1743757761916,6.23323,1827.9,1827.8,4.6837]
[1743757762613,1.09435,1827.7,1827.6,3.2078]
[1743757763415,2.56645,1827.7,1827.6,4.6837]
[1743757764014,2.56645,1827.7,1827.6,5.77811]
[1743757764216,2.56645,1827.7,1827.6,4.6837]
[1743757764409,2.56645,1827.7,1827.6,5.77811]
[1743757765911,2.56645,1827.7,1827.6,4.6837]
[1743757766207,2.56645,1827.7,1827.6,3.2078]
[1743757766622,2.56645,1827.7,1827.6,4.30221]
[1743757766920,2.56645,1827.7,1827.6,5.73991]
[1743757767108,2.56645,1827.7,1827.6,3.2078]
[1743757767722,2.56645,1827.7,1827.6,4.30221]
[1743757767917,2.56645,1827.7,1827.6,4.6997]
[1743757768314,2.56645,1827.7,1827.6,3.2078]
[1743757768710,1.09441,1827.6,1827.5,7.45791335]
[1743757768919,2.62971,1827.6,1827.5,7.45791335]
[1743757769321,6.27871,1827.6,1827.5,0.00821917]
[1743757769824,8.77871,1827.6,1827.5,0.00821917]
[1743757774528,11.98651,1827.6,1827.5,0.00821917]
[1743757774733,1.09459,1827.3,1827.2,1.4919]
[1743757775027,4.74259,1827.3,1827.2,1.4919]
[1743757775732,6.21499,1827.3,1827.2,1.4919]
[1743757776927,1.09465,1827.2,1827.1,0.00821917]
[1743757777126,2.56735,1827.2,1827.1,0.00821917]
[1743757777325,2.56735,1827.2,1827.1,1.42101917]
[1743757777628,1.09465,1827.2,1827.1,1.42101917]
[1743757778030,1.09465,1827.2,1827.1,2.51572917]
[1743757778923,1.09465,1827.2,1827.1,1.42101917]
[1743757779128,1.09465,1827.2,1827.1,2.51572917]
[1743757785931,4.74261,1827.3,1827.2,1.09465]
[1743757786126,1.09461,1827.3,1827.2,7.29005]
[1743757786536,0.00821917,1827.4,1827.3,1.09459]
[1743757786735,1.10274917,1827.4,1827.3,2.58189]
[1743757787036,0.00821917,1827.4,1827.3,43.38189]
[1743757787932,1.10274917,1827.4,1827.3,43.38189]
[1743757792240,1.10274917,1827.4,1827.3,49.33968418]
[1743757795435,1.10274917,1827.4,1827.3,48.24509418]
[1743757795636,2.61144917,1827.4,1827.3,48.24509418]
[1743757796738,6.25844917,1827.4,1827.3,7.44509418]
[1743757796939,1.09459,1827.3,1827.2,3.2078]
[1743757797238,2.60049,1827.3,1827.2,3.2078]
[1743757797939,1.09465,1827.2,1827.1,42.28461917]
[1743757801634,1.09464,1827.3,1827.1,43.37932917]
[1743757801839,1.09464,1827.3,1827.2,6.48425]
[1743757802038,1.09464,1827.3,1827.2,7.20775]
[1743757802946,1.09464,1827.3,1827.2,6.1131]
[1743757803740,1.09464,1827.3,1827.2,5.3896]
[1743757803940,1.82984,1827.3,1827.2,5.3896]
[1743757804243,1.82984,1827.3,1827.2,46.1896]
[1743757804442,1.09464,1827.3,1827.2,47.28425]
[1743757804639,0.00821917,1827.4,1827.3,1.09459]
[1743757804844,0.00821917,1827.4,1827.3,3.26129]
[1743757805046,0.00821917,1827.4,1827.3,2.1667]
[1743757805047,1.10274917,1827.4,1827.3,2.1667]
[1743757805848,1.10274917,1827.4,1827.3,3.26129]
[1743757806149,1.10274917,1827.4,1827.3,2.1667]
[1743757806348,0.00821917,1827.4,1827.3,3.26129]
[1743757806645,1.09439,1827.7,1827.6,1.09441]
[1743757806949,1.09439,1827.7,1827.6,41.89441]
[1743757807444,3.48901,1828.1,1827.6,42.2397]
[1743757807636,1.09434,1827.8,1827.7,2.53403]
[1743757807840,1.09427,1827.9,1827.8,1.09426]
[1743757808039,1.5094,1828.1,1827.8,4.17537]
[1743757808243,1.09419,1828.0,1827.9,1.82649]
[1743757808449,1.09419,1828.0,1827.9,6.47399]
[1743757810645,0.7557,1828.1,1827.9,5.3798]
[1743757810851,0.7557,1828.1,1828.0,2.53667]
[1743757811049,0.6923,1828.4,1828.3,1.09399]
[1743757811246,5.8957,1828.6,1828.4,1.09389]
[1743757811448,1.09388,1828.5,1828.4,1.4425]
[1743757811643,4.11085,1828.6,1828.4,1.4425]
[1743757811948,1.09388,1828.5,1828.4,1.4425]
[1743757812248,4.11086,1828.6,1828.4,1.4425]
[1743757812448,1.09388,1828.5,1828.4,1.4425]
[1743757815652,1.09388,1828.5,1828.4,2.53644]
[1743757816152,1.09388,1828.5,1828.4,1.4425]
[1743757816955,1.09388,1828.5,1828.4,2.53644]
[1743757817156,1.09388,1828.5,1828.4,1.4425]
[1743757817356,1.09388,1828.5,1828.4,2.53644]
[1743757817551,2.60746,1828.6,1828.4,1.4425]
[1743757817772,2.60746,1828.6,1828.5,2.61698]
[1743757818057,1.0938,1828.7,1828.6,1.09381]
[1743757818250,1.0938,1828.7,1828.6,2.61691]
[1743757818456,1.0938,1828.7,1828.6,1.5231]
[1743757820760,1.0938,1828.7,1828.6,2.61692]
[1743757822862,1.83352,1828.8,1828.7,1.09376]
[1743757823163,1.85556,1828.9,1828.7,6.45421]
[1743757823568,1.0937,1828.8,1828.7,4.99611]
[1743757823861,0.7619,1828.9,1828.8,1.0937]
[1743757824060,1.83472,1829.0,1828.8,1.09365]
[1743757824256,1.80163,1829.1,1828.9,3.2078]
[1743757824567,1.80163,1829.1,1828.9,4.30139]
[1743757824763,3.18683,1829.1,1828.9,4.30139]
[1743757825964,1.09358,1829.0,1828.9,3.2078]
[1743757826163,1.3955,1829.0,1828.7,50.66019418]
[1743757826355,1.0937,1828.8,1828.7,5.95779418]
[1743757826560,1.0937,1828.8,1828.7,9.16559418]
[1743757826764,1.0937,1828.8,1828.7,5.95779418]
[1743757827069,3.8947,1828.8,1828.7,5.95779418]
[1743757827260,3.8947,1828.8,1828.7,10.25935418]
[1743757827566,1.4055,1828.8,1828.7,4.30156]
[1743757828263,4.73665,1828.9,1828.7,3.9269]
[1743757828468,4.73665,1828.9,1828.8,1.0937]
[1743757829067,1.09365,1828.9,1828.8,1.0937]
[1743757830269,1.09365,1828.9,1828.7,5.0206]
[1743757830767,1.09365,1828.9,1828.8,1.0937]
[1743757830966,2.48912,1829.0,1828.8,1.0937]
[1743757833371,1.09364,1828.9,1828.8,1.0937]
[1743757833675,2.4891,1829.0,1828.8,1.0937]
[1743757833870,1.0936,1829.0,1828.9,1.09364]
[1743757834569,1.0936,1829.0,1828.8,1.09365]
[1743757835970,1.09364,1828.9,1828.8,1.09365]
[1743757836869,1.09364,1828.9,1828.7,9.88469418]
[1743757837067,1.09364,1828.9,1828.8,1.0937]
[1743757839265,4.7245,1829.0,1828.5,3.2078]
[1743757839477,1.09382,1828.6,1828.5,3.2078]
[1743757839774,1.09382,1828.6,1828.5,44.0078]
[1743757839975,1.09382,1828.6,1828.5,45.10168]
[1743757840288,1.0938,1828.7,1828.6,1.09379]
[1743757840475,1.0938,1828.7,1828.6,2.50699]
[1743757842574,1.0938,1828.7,1828.6,1.4132]
[1743757843475,1.0938,1828.7,1828.6,2.50702]
[1743757844277,1.0938,1828.7,1828.6,1.4132]
[1743757845278,1.0938,1828.7,1828.6,2.50702]
[1743757851181,1.0938,1828.7,1828.6,1.4132]
[1743757851974,1.0938,1828.7,1828.6,2.50702]
[1743757852479,1.0938,1828.7,1828.6,2.1812]
[1743757852676,1.0938,1828.7,1828.6,3.27502]
[1743757854278,1.0938,1828.7,1828.6,2.1812]
[1743757855300,1.0938,1828.7,1828.6,42.9812]
[1743757855784,1.0938,1828.7,1828.6,44.07502]
[1743757856377,1.0938,1828.7,1828.6,43.30702]
[1743757857792,1.0938,1828.7,1828.6,42.2132]
[1743757858086,1.09382,1828.6,1828.5,9.16559418]
[1743757858290,2.60382,1828.6,1828.5,5.95779418]
[1743757858593,1.09388,1828.5,1828.4,1.4803]
[1743757858781,4.11088,1828.5,1828.4,1.4803]
[1743757859278,3.017,1828.5,1828.4,43.37424]
[1743757859483,1.507,1828.5,1828.4,43.37424]
[1743757859689,2.60088,1828.5,1828.4,43.37424]
[1743757860982,2.60088,1828.5,1828.4,1.4803]
[1743757861188,2.60088,1828.5,1828.4,2.57424]
[1743757861386,1.507,1828.5,1828.4,2.57424]
[1743757861687,2.60088,1828.5,1828.4,1.4803]
[1743757861888,2.60088,1828.5,1828.3,40.8]
[1743757861889,1.09394,1828.4,1828.3,40.8]
[1743757862088,2.49624,1828.4,1828.3,40.8]
[1743757863391,2.49624,1828.4,1828.3,42.2043]
[1743757863591,2.49624,1828.4,1828.3,43.29829]
[1743757863795,2.60088,1828.5,1828.4,1.09394]
[1743757863994,2.60088,1828.5,1828.4,2.49824]
[1743757864497,1.507,1828.5,1828.4,2.49824]
[1743757864994,2.60088,1828.5,1828.4,2.49824]
[1743757865198,0.7633,1828.5,1828.4,2.49824]
[1743757866397,1.85718,1828.5,1828.4,2.49824]
[1743757867091,1.85718,1828.5,1828.4,1.4043]
[1743757867998,1.09394,1828.4,1828.3,49.96559418]
[1743757868196,3.19594,1828.4,1828.3,49.96559418]
[1743757868398,3.19594,1828.4,1828.3,51.34919418]
[1743757869200,0.7024,1828.4,1828.3,52.44318418]
[1743757869397,0.7633,1828.5,1828.3,51.34919418]
[1743757869606,1.09394,1828.4,1828.3,51.78354418]
[1743757869798,1.09394,1828.4,1828.3,49.96559418]
[1743757871606,1.09394,1828.4,1828.3,51.05958418]
[1743757872804,1.09394,1828.4,1828.3,47.85178418]
[1743757875203,1.09394,1828.4,1828.3,46.75779418]
[1743757875407,3.24704,1828.4,1828.3,46.75779418]
[1743757877407,3.24704,1828.4,1828.3,40.8]
[1743757878099,1.09399,1828.3,1828.2,0.00821917]
[1743757878300,2.54209,1828.3,1828.2,0.00821917]
[1743757882906,1.09429,1827.8,1827.7,9.16559418]
[1743757883207,2.73559,1827.9,1827.6,2.49107]
[1743757883408,2.50113,1827.8,1827.7,43.41385]
[1743757884211,2.50113,1827.8,1827.7,42.3195]
[1743757886314,2.50113,1827.8,1827.7,40.8]
[1743757886711,7.19163,1827.8,1827.7,40.8]
[1743757888398,1.09435,1827.7,1827.6,1.42641917]
[1743757888612,2.57705,1827.7,1827.6,1.42641917]
[1743757888915,2.57705,1827.7,1827.6,42.22641917]
[1743757891306,2.57705,1827.7,1827.6,40.80821917]
[1743757891513,2.57705,1827.7,1827.6,0.00821917]
[1743757895813,0.00821917,1827.9,1827.6,5.95193917]
[1743757896116,3.64821917,1827.9,1827.7,2.0824]
[1743757896410,4.74244917,1827.9,1827.8,1.3832]
[1743757896607,3.64821917,1827.9,1827.8,4.591]
[1743757896808,3.64821917,1827.9,1827.8,5.68529]
[1743757897018,4.74244917,1827.9,1827.8,5.68529]
[1743757897218,4.74244917,1827.9,1827.8,4.591]
[1743757898217,1.10244917,1827.9,1827.8,1.3832]
[1743757899810,1.10244917,1827.9,1827.8,2.47749]
[1743757901322,1.10244917,1827.9,1827.8,1.3832]
[1743757901520,1.10244917,1827.9,1827.8,2.47749]
[1743757901820,0.00821917,1827.9,1827.8,8.18529]
[1743757902923,1.10244917,1827.9,1827.8,8.18529]
[1743757903423,0.00821917,1827.9,1827.8,8.18529]
[1743757903612,1.10244917,1827.9,1827.8,8.18529]
[1743757904018,0.00821917,1827.9,1827.8,5.68529]
[1743757905321,1.09415,1828.1,1827.8,5.68529]
[1743757905322,1.09408,1828.2,1828.1,1.09408]
[1743757905725,1.09403,1828.3,1828.2,1.09404]
[1743757905920,1.09405,1828.2,1828.1,2.479]
[1743757906116,1.09405,1828.2,1828.1,1.3849]
[1743757906428,1.09405,1828.2,1828.1,2.47901]
[1743757906631,1.09405,1828.2,1828.1,1.3849]
[1743757909130,1.80005,1828.2,1828.1,1.3849]
[1743757930741,3.20495,1828.2,1828.1,1.3849]
[1743757934343,3.20495,1828.2,1828.1,2.47901]
[1743757934636,0.706,1828.2,1828.1,2.47901]
[1743757934837,3.2078,1828.7,1828.4,3.82859]
[1743757935044,0.7208,1828.7,1828.6,4.30162]
[1743757935344,3.45522,1828.7,1828.4,3.2078]
[1743757935545,1.09388,1828.5,1828.4,3.2078]
[1743757935742,1.09388,1828.5,1828.4,4.6424]
[1743757935943,1.84898,1828.5,1828.4,4.6424]
[1743757936143,1.84898,1828.5,1828.4,45.4424]
[1743757936341,1.84898,1828.5,1828.4,46.53634]
[1743757936641,1.09386,1828.6,1828.5,1.09388]
[1743757936841,1.0938,1828.7,1828.5,4.04148]
[1743757937239,1.0938,1828.7,1828.6,1.4346]
[1743757937850,1.09388,1828.5,1828.4,44.0078]
[1743757938241,1.09388,1828.5,1828.4,3.2078]
[1743757938441,2.9205,1828.6,1828.3,5.95779418]
[1743757938442,1.09394,1828.4,1828.3,5.95779418]
[1743757938642,1.09399,1828.3,1828.2,3.2078]
[1743757939446,1.09399,1828.3,1828.2,4.6736]
[1743757940539,1.85629,1828.3,1828.2,4.6736]
[1743757940743,1.85629,1828.3,1828.2,1.4658]
[1743757941645,1.09411,1828.1,1828.0,49.96559418]
[1743757942045,1.09411,1828.1,1828.0,48.18149418]
[1743757942247,2.53631,1828.1,1828.0,48.18149418]
[1743757944749,2.53631,1828.1,1828.0,42.2237]
[1743757951854,1.09411,1828.1,1828.0,42.2237]
[1743757962154,1.09411,1828.1,1828.0,42.2986901]
[1743757979370,1.09411,1828.1,1828.0,43.0376901]
[1743757983277,709.237,1830.4,1828.2,2.73503]